fUST/lending_fUST_20250713
["ID","MTS","AMOUNT","RATE_DAILY","PERIOD"]
[371729465,1752405048417,-500.0,0.00017981,2]
[371729467,1752405048427,-500.0,0.00017981,2]
[371729469,1752405048438,-500.0,0.00017981,2]
[371729471,1752405048447,-500.0,0.00017981,2]
[371729473,1752405048457,-500.0,0.00017981,2]
[371729475,1752405048469,-500.0,0.00017981,2]
[371729477,1752405048478,-500.0,0.00017981,2]
[371729479,1752405048488,-248.42726251,0.00017981,2]
[371729481,1752405048498,-696.38625055,0.00017981,2]
[371729483,1752405048508,-500.0,0.00017981,2]
[371729485,1752405048517,-696.38625055,0.00017981,2]
[371729487,1752405048527,-696.38625055,0.00017981,2]
[371729489,1752405048537,-500.0,0.00017981,2]
[371729492,1752405048551,-500.0,0.00017981,2]
[371729494,1752405048570,-500.0,0.00017981,2]
[371729495,1752405048585,-500.0,0.00017981,2]
[371729497,1752405048595,-696.38625055,0.00017981,2]
[371729499,1752405048605,-500.0,0.00017981,2]
[371729501,1752405048615,-696.38625055,0.00017981,2]
[371729503,1752405048625,-500.0,0.00017981,2]
[371729505,1752405048634,-500.0,0.00017981,2]
[371729507,1752405048644,-696.38625055,0.00017981,2]
[371729509,1752405048653,-500.0,0.00017981,2]
[371729511,1752405048663,-500.0,0.00017981,2]
[371729513,1752405048672,-696.38625055,0.00017981,2]
[371729515,1752405048682,-500.0,0.00017981,2]
[371729517,1752405048692,-500.0,0.00017981,2]
[371729519,1752405048703,-696.38625055,0.00017981,2]
[371729521,1752405048712,-500.0,0.00017981,2]
[371729523,1752405048722,-500.0,0.00017981,2]
[371729525,1752405048731,-696.38625055,0.00017981,2]
[371729527,1752405048740,-500.0,0.00017981,2]
[371729529,1752405048751,-500.0,0.00017981,2]
[371729531,1752405048760,-696.38625055,0.00017981,2]
[371729533,1752405048770,-500.0,0.00017981,2]
[371729535,1752405048780,-696.38625055,0.00017981,2]
[371729537,1752405048791,-500.0,0.00017981,2]
[371729539,1752405048800,-500.0,0.00017981,2]
[371729541,1752405048810,-696.38625055,0.00017981,2]
[371729542,1752405048820,-500.0,0.00017981,2]
[371729544,1752405048831,-500.0,0.00017981,2]
[371729546,1752405048841,-696.38625055,0.00017981,2]
[371729548,1752405048851,-500.0,0.00017981,2]
[371729550,1752405048862,-696.38625055,0.00017981,2]
[371729552,1752405048871,-500.0,0.00017981,2]
[371729554,1752405048882,-696.38625055,0.00017981,2]
[371729556,1752405048892,-696.38625055,0.00017981,2]
[371729558,1752405048902,-696.38625055,0.00017981,2]
[371729560,1752405048912,-696.38625055,0.00017981,2]
[371729562,1752405048922,-696.38625055,0.00017981,2]
[371729564,1752405048932,-500.0,0.00017981,2]
[371729566,1752405048941,-696.38625055,0.00017981,2]
[371729568,1752405048951,-696.38625055,0.00017981,2]
[371729570,1752405048961,-696.38625055,0.00017981,2]
[371729572,1752405048971,-274.22791761,0.00017981,2]
[371729574,1752405048981,-696.38625055,0.00017981,2]
[371729576,1752405048991,-696.38625055,0.00017981,2]
[371729578,1752405049001,-500.0,0.00017981,2]
[371729581,1752405049011,-696.38625055,0.00017981,2]
[371729583,1752405049021,-696.38625055,0.00017981,2]
[371729584,1752405049031,-500.0,0.00017981,2]
[371729586,1752405049041,-696.38625055,0.00017981,2]
[371729588,1752405049051,-696.38625055,0.00017981,2]
[371729590,1752405049061,-696.38625055,0.00017981,2]
[371729592,1752405049070,-696.38625055,0.00017981,2]
[371729594,1752405049081,-696.38625055,0.00017981,2]
[371729596,1752405049090,-696.38625055,0.00017981,2]
[371729598,1752405049100,-696.38625055,0.00017981,2]
[371729600,1752405049110,-696.38625055,0.00017981,2]
[371729602,1752405049119,-696.38625055,0.00017981,2]
[371729604,1752405049128,-696.38625055,0.00017981,2]
[371729606,1752405049138,-696.38625055,0.00017981,2]
[371729608,1752405049147,-696.38625055,0.00017981,2]
[371729610,1752405049157,-696.38625055,0.00017981,2]
[371729612,1752405049167,-696.38625055,0.00017981,2]
[371729614,1752405049179,-696.38625055,0.00017981,2]
[371729616,1752405049189,-696.38625055,0.00017981,2]
[371729618,1752405049198,-696.38625055,0.00017981,2]
[371729620,1752405049207,-696.38625055,0.00017981,2]
[371729622,1752405049218,-696.38625055,0.00017981,2]
[371729624,1752405049228,-696.38625055,0.00017981,2]
[371729626,1752405049238,-696.38625055,0.00017981,2]
[371729627,1752405049247,-696.38625055,0.00017981,2]
[371729629,1752405049258,-696.38625055,0.00017981,2]
[371729631,1752405049268,-696.38625055,0.00017981,2]
[371729633,1752405049278,-696.38625055,0.00017981,2]
[371729635,1752405049287,-696.38625055,0.00017981,2]
[371729637,1752405049297,-696.38625055,0.00017981,2]
[371729639,1752405049307,-696.38625055,0.00017981,2]
[371729641,1752405049317,-696.38625055,0.00017981,2]
[371729643,1752405049326,-696.38625055,0.00017981,2]
[371729645,1752405049337,-696.38625055,0.00017981,2]
[371729647,1752405049348,-696.38625055,0.00017981,2]
[371729650,1752405049358,-696.38625055,0.00017981,2]
[371729652,1752405049368,-696.38625055,0.00017981,2]
[371729653,1752405049379,-696.38625055,0.00017981,2]
[371729655,1752405049389,-696.38625055,0.00017981,2]
[371729657,1752405049403,-696.38625055,0.00017981,2]
[371729658,1752405049413,-696.38625055,0.00017981,2]
[371729659,1752405049423,-696.38625055,0.00017981,2]
[371729660,1752405049434,-696.38625055,0.00017981,2]
[371729661,1752405049444,-500.0,0.00017981,2]
[371729662,1752405049454,-500.0,0.00017981,2]
[371729663,1752405049464,-500.0,0.00017981,2]
[371729664,1752405049474,-456.08787789,0.00017981,2]
[371729665,1752405049485,-500.0,0.00017981,2]
[371729666,1752405049494,-500.0,0.00017981,2]
[371729667,1752405049505,-500.0,0.00017981,2]
[371729668,1752405049515,-500.0,0.00017981,2]
[371729669,1752405049525,-500.0,0.00017981,2]
[371729670,1752405049535,-500.0,0.00017981,2]
[371729671,1752405049545,-500.0,0.00017981,2]
[371729672,1752405049555,-500.0,0.00017981,2]
[371729673,1752405049565,-500.0,0.00017981,2]
[371729674,1752405049575,-500.0,0.00017981,2]
[371729675,1752405049585,-500.0,0.00017981,2]
[371729676,1752405049595,-500.0,0.00017981,2]
[371729677,1752405049604,-500.0,0.00017981,2]
[371729678,1752405049614,-500.0,0.00017981,2]
[371729679,1752405049624,-500.0,0.00017981,2]
[371729680,1752405049633,-500.0,0.00017981,2]
[371729681,1752405049643,-500.0,0.00017981,2]
[371729682,1752405049652,-500.0,0.00017981,2]
[371729683,1752405049662,-500.0,0.00017981,2]
[371729684,1752405049671,-500.0,0.00017981,2]
[371729685,1752405049680,-500.0,0.00017981,2]
[371729686,1752405049690,-500.0,0.00017981,2]
[371729687,1752405049700,-500.0,0.00017981,2]
[371729688,1752405049709,-500.0,0.00017981,2]
[371729689,1752405049719,-500.0,0.00017981,2]
[371729690,1752405049728,-500.0,0.00017981,2]
[371729691,1752405049738,-500.0,0.00017981,2]
[371729692,1752405049748,-500.0,0.00017981,2]
[371729693,1752405049840,-500.0,0.00017981,2]
[371729694,1752405049860,-500.0,0.00017981,2]
[371729695,1752405049870,-500.0,0.00017981,2]
[371729696,1752405049880,-500.0,0.00017981,2]
[371729697,1752405049891,-500.0,0.00017981,2]
[371729698,1752405049901,-500.0,0.00017981,2]
[371729699,1752405049911,-284.50823037,0.00017981,2]
[371729700,1752405049921,-500.0,0.00017981,2]
[371729701,1752405049931,-500.0,0.00017981,2]
[371729702,1752405049941,-500.0,0.00017981,2]
[371729703,1752405049951,-500.0,0.00017981,2]
[371729704,1752405049961,-500.0,0.00017981,2]
[371729705,1752405049971,-269.7064083,0.00017981,2]
[371729706,1752405049980,-500.0,0.00017981,2]
[371729707,1752405049990,-500.0,0.00017981,2]
[371729708,1752405050001,-500.0,0.00017981,2]
[371729710,1752405050011,-500.0,0.00017981,2]
[371729712,1752405050020,-500.0,0.00017981,2]
[371729713,1752405050031,-500.0,0.00017981,2]
[371729715,1752405050040,-500.0,0.00017981,2]
[371729717,1752405050050,-500.0,0.00017981,2]
[371729718,1752405050059,-500.0,0.00017981,2]
[371729719,1752405050069,-500.0,0.00017981,2]
[371729720,1752405050079,-500.0,0.00017981,2]
[371729721,1752405050088,-500.0,0.00017981,2]
[371729722,1752405050098,-500.0,0.00017981,2]
[371729723,1752405050108,-500.0,0.00017981,2]
[371729724,1752405050117,-500.0,0.00017981,2]
[371729725,1752405050127,-500.0,0.00017981,2]
[371729726,1752405050136,-550.00000001,0.00017981,2]
[371729728,1752405050145,-500.0,0.00017981,2]
[371729729,1752405050154,-500.0,0.00017981,2]
[371729731,1752405050165,-500.0,0.00017981,2]
[371729732,1752405050176,-500.0,0.00017981,2]
[371729734,1752405050187,-500.0,0.00017981,2]
[371729736,1752405050197,-500.0,0.00017981,2]
[371729737,1752405050206,-676.88743554,0.00017981,2]
[371729738,1752405050217,-676.88743554,0.00017981,2]
[371729739,1752405050226,-676.88743554,0.00017981,2]
[371729740,1752405050236,-676.88743554,0.00017981,2]
[371729741,1752405050246,-676.88743554,0.00017981,2]
[371729742,1752405050256,-676.88743554,0.00017981,2]
[371729743,1752405050266,-676.88743554,0.00017981,2]
[371729744,1752405050275,-676.88743554,0.00017981,2]
[371729745,1752405050285,-676.88743554,0.00017981,2]
[371729746,1752405050294,-676.88743554,0.00017981,2]
[371729747,1752405050304,-676.88743554,0.00017981,2]
[371729748,1752405050313,-676.88743554,0.00017981,2]
[371729749,1752405050323,-676.88743554,0.00017981,2]
[371729750,1752405050334,-676.88743554,0.00017981,2]
[371729751,1752405050344,-676.88743554,0.00017981,2]
[371729752,1752405050353,-676.88743554,0.00017981,2]
[371729754,1752405050362,-676.88743554,0.00017981,2]
[371729756,1752405050371,-676.88743554,0.00017981,2]
[371729758,1752405050381,-676.88743554,0.00017981,2]
[371729760,1752405050391,-676.88743554,0.00017981,2]
[371729762,1752405050400,-676.88743554,0.00017981,2]
[371729764,1752405050409,-676.88743554,0.00017981,2]
[371729766,1752405050418,-676.88743554,0.00017981,2]
[371729768,1752405050428,-676.88743554,0.00017981,2]
[371729770,1752405050439,-499.99999999,0.00017981,2]
[371729772,1752405050448,-499.99999999,0.00017981,2]
[371729773,1752405050457,-676.88743553,0.00017981,2]
[371729774,1752405050467,-17659.07792108,0.00017982,2]
[371729775,1752405050476,-233.925784,0.00018048,2]
[371729776,1752405050486,-500.0,0.00018068,2]
[371729777,1752405050496,-460.0,0.00018082,2]
[371729778,1752405050507,-579.15,0.00018082,2]
[371729779,1752405050517,-460.0,0.00018082,2]
[371729780,1752405050527,-161.80216705,0.00018082,2]
[371729781,1752405050536,-460.0,0.00018082,2]
[371729782,1752405050545,-460.0,0.00018082,2]
[371729783,1752405050555,-460.0,0.00018082,2]
[371729784,1752405050564,-533.72,0.00018082,2]
[371729785,1752405050573,-460.0,0.00018082,2]
[371729786,1752405050583,-571.64,0.00018082,2]
[371729787,1752405050592,-272.86,0.00018082,2]
[371729788,1752405050602,-440.82494386,0.00018082,2]
[371729789,1752405050612,-460.0,0.00018082,2]
[371729790,1752405050622,-460.0,0.00018082,2]
[371729791,1752405050631,-460.0,0.00018082,2]
[371729792,1752405050640,-460.0,0.00018082,2]
[371729793,1752405050650,-460.0,0.00018082,2]
[371729794,1752405050659,-1854.12,0.00018082,2]
[371729795,1752405050669,-1041.88,0.00018082,2]
[371729796,1752405050679,-192.7,0.00018082,2]
[371729797,1752405050689,-460.0,0.00018082,2]
[371729798,1752405050699,-649.01,0.00018082,2]
[371729799,1752405050708,-528.86,0.00018082,2]
[371729800,1752405050718,-514.89,0.00018082,2]
[371729801,1752405050727,-460.0,0.00018082,2]
[371729802,1752405050737,-460.0,0.00018082,2]
[371729803,1752405050747,-460.0,0.00018082,2]
[371729804,1752405050757,-460.0,0.00018082,2]
[371729805,1752405050766,-460.0,0.00018082,2]
[371729806,1752405050776,-460.0,0.00018082,2]
[371729807,1752405050786,-460.0,0.00018082,2]
[371729808,1752405050796,-460.0,0.00018082,2]
[371729809,1752405050805,-469.79,0.00018082,2]
[371729810,1752405050815,-813.62,0.00018082,2]
[371729811,1752405050824,-460.0,0.00018082,2]
[371729812,1752405050834,-553.71,0.00018082,2]
[371729813,1752405050844,-460.0,0.00018082,2]
[371729814,1752405050854,-968.58,0.00018082,2]
[371729815,1752405050863,-460.0,0.00018082,2]
[371729816,1752405050872,-1228.5,0.00018082,2]
[371729817,1752405050881,-460.0,0.00018082,2]
[371729818,1752405050891,-2317.57,0.00018082,2]
[371729819,1752405050900,-460.0,0.00018082,2]
[371729820,1752405050910,-460.0,0.00018082,2]
[371729821,1752405050920,-460.0,0.00018082,2]
[371729822,1752405050930,-543.41,0.00018082,2]
[371729823,1752405050940,-460.0,0.00018082,2]
[371729824,1752405050949,-581.34,0.00018082,2]
[371729825,1752405050959,-806.05,0.00018082,2]
[371729826,1752405050969,-460.0,0.00018082,2]
[371729827,1752405050979,-460.0,0.00018082,2]
[371729828,1752405050988,-2045.15,0.00018082,2]
[371729829,1752405050998,-1764.26,0.00018082,2]
[371729830,1752405051007,-460.0,0.00018082,2]
[371729831,1752405051016,-2234.96,0.00018082,2]
[371729832,1752405051026,-460.0,0.00018082,2]
[371729834,1752405051035,-460.0,0.00018082,2]
[371729835,1752405051046,-747.33,0.00018082,2]
[371729836,1752405051056,-460.0,0.00018082,2]
[371729837,1752405051066,-2000.0,0.00018116,2]
[371729838,1752405051076,-2000.0,0.00018116,2]
[371729839,1752405051086,-1010.08387321,0.00018116,2]
[371729840,1752405051096,-214.956284,0.00018118,2]
[371729841,1752405051106,-151.0,0.00018118,2]
[371729842,1752405051115,-233.925784,0.00018129,2]
[371729843,1752405051124,-3548.59151262,0.00018141,2]
[371729844,1752405051134,-151.0,0.0001816,2]
[371729845,1752405051143,-161.37660368,0.00018173,2]
[371729846,1752405051152,-233.925784,0.00018211,2]
[371729847,1752405051162,-3435.67523137,0.0001825,2]
[371729848,1752405051176,-233.925784,0.00018292,2]
[371729849,1752405051186,-460.0,0.00018356,2]
[371729850,1752405051196,-579.15,0.00018356,2]
[371729851,1752405051207,-460.0,0.00018356,2]
[371729852,1752405051217,-460.0,0.00018356,2]
[371729853,1752405051227,-460.0,0.00018356,2]
[371729854,1752405051237,-436.42,0.00018356,2]
[371729855,1752405051247,-533.72,0.00018356,2]
[371729856,1752405051258,-152.550126,0.00018356,2]
[371729857,1752405051268,-459.24231215,0.00018356,2]
[371729858,1752405051278,-571.64,0.00018356,2]
[371729859,1752405051288,-460.0,0.00018356,2]
[371729860,1752405051298,-460.0,0.00018356,2]
[371729861,1752405051308,-460.0,0.00018356,2]
[371729862,1752405051317,-460.0,0.00018356,2]
[371729863,1752405051326,-460.0,0.00018356,2]
[371729864,1752405051335,-1854.12,0.00018356,2]
[371729865,1752405051343,-151.0,0.00018356,2]
[371729866,1752405051352,-1041.88,0.00018356,2]
[371729867,1752405051361,-151.0,0.00018356,2]
[371729868,1752405051371,-156.31843284,0.00018356,2]
[371729869,1752405051380,-649.01,0.00018356,2]
[371729870,1752405051390,-528.86,0.00018356,2]
[371729871,1752405051400,-514.89,0.00018356,2]
[371729872,1752405051410,-460.0,0.00018356,2]
[371729873,1752405051420,-460.0,0.00018356,2]
[371729874,1752405051429,-460.0,0.00018356,2]
[371729875,1752405051438,-460.0,0.00018356,2]
[371729876,1752405051447,-460.0,0.00018356,2]
[371729877,1752405051457,-151.0,0.00018356,2]
[371729878,1752405051466,-460.0,0.00018356,2]
[371729879,1752405051476,-460.0,0.00018356,2]
[371729880,1752405051485,-460.0,0.00018356,2]
[371729881,1752405051495,-469.79,0.00018356,2]
[371729882,1752405051505,-813.62,0.00018356,2]
[371729883,1752405051514,-460.0,0.00018356,2]
[371729884,1752405051524,-553.71,0.00018356,2]
[371729885,1752405051534,-968.58,0.00018356,2]
[371729886,1752405051544,-460.0,0.00018356,2]
[371729887,1752405051553,-1228.5,0.00018356,2]
[371729888,1752405051563,-460.0,0.00018356,2]
[371729889,1752405051572,-2317.57,0.00018356,2]
[371729890,1752405051582,-460.0,0.00018356,2]
[371729891,1752405051591,-460.0,0.00018356,2]
[371729892,1752405051602,-460.0,0.00018356,2]
[371729893,1752405051612,-543.41,0.00018356,2]
[371729894,1752405051622,-460.0,0.00018356,2]
[371729895,1752405051631,-581.34,0.00018356,2]
[371729896,1752405051642,-806.05,0.00018356,2]
[371729897,1752405051652,-460.0,0.00018356,2]
[371729898,1752405051661,-460.0,0.00018356,2]
[371729899,1752405051670,-2045.15,0.00018356,2]
[371729900,1752405051680,-1764.26,0.00018356,2]
[371729901,1752405051690,-460.0,0.00018356,2]
[371729902,1752405051699,-2234.96,0.00018356,2]
[371729903,1752405051709,-460.0,0.00018356,2]
[371729904,1752405051719,-460.0,0.00018356,2]
[371729905,1752405051728,-747.33,0.00018356,2]
[371729906,1752405051738,-460.0,0.00018356,2]
[371729907,1752405051748,-500.0,0.00018373,2]
[371729908,1752405051758,-500.0,0.00018373,2]
[371729909,1752405051767,-505.49074743,0.00018373,2]
[371729910,1752405051776,-366.56020996,0.00018373,2]
[371729911,1752405051786,-501.18861077,0.00018373,2]
[371729912,1752405051796,-233.925784,0.00018373,2]
[371729913,1752405051805,-160.0,0.00018383,2]
[371729914,1752405051816,-160.0,0.00018383,2]
[371729915,1752405051825,-214.29528141,0.00018383,2]
[371729916,1752405051835,-215.42595214,0.00018383,2]
[371729917,1752405051844,-230.68503973,0.00018383,2]
[371729918,1752405051853,-160.0,0.00018383,2]
[371729919,1752405051862,-838.53376533,0.00018383,2]
[371729920,1752405051872,-160.0,0.00018383,2]
[371729921,1752405051881,-160.0,0.00018383,2]
[371729922,1752405051891,-836.956561,0.00018383,2]
[371729923,1752405051900,-160.0,0.00018383,2]
[371729924,1752405051909,-160.0,0.00018383,2]
[371729925,1752405051918,-160.0,0.00018383,2]
[371729926,1752405051928,-3548.59151262,0.00018452,2]
[371729927,1752405051937,-233.925784,0.00018454,2]
[371729928,1752405051947,-233.925784,0.00018536,2]
[371729929,1752405051956,-579.15,0.0001863,2]
[371729930,1752405051966,-408.03,0.0001863,2]
[371729931,1752405051976,-460.0,0.0001863,2]
[371729932,1752405051985,-460.0,0.0001863,2]
[371729933,1752405051995,-533.72,0.0001863,2]
[371729934,1752405052005,-571.64,0.0001863,2]
[371729935,1752405052015,-460.0,0.0001863,2]
[371729936,1752405052024,-460.0,0.0001863,2]
[371729937,1752405052034,-460.0,0.0001863,2]
[371729938,1752405052132,-460.0,0.0001863,2]
[371729939,1752405052142,-460.0,0.0001863,2]
[371729940,1752405052152,-1854.12,0.0001863,2]
[371729941,1752405052162,-1041.88,0.0001863,2]
[371729942,1752405052176,-649.01,0.0001863,2]
[371729943,1752405052191,-528.86,0.0001863,2]
[371729944,1752405052201,-514.89,0.0001863,2]
[371729945,1752405052211,-460.0,0.0001863,2]
[371729946,1752405052220,-460.0,0.0001863,2]
[371729947,1752405052229,-460.0,0.0001863,2]
[371729948,1752405052239,-460.0,0.0001863,2]
[371729949,1752405052249,-460.0,0.0001863,2]
[371729950,1752405052259,-460.0,0.0001863,2]
[371729951,1752405052269,-460.0,0.0001863,2]
[371729952,1752405052278,-460.0,0.0001863,2]
[371729953,1752405052288,-469.79,0.0001863,2]
[371729954,1752405052297,-813.62,0.0001863,2]
[371729955,1752405052307,-460.0,0.0001863,2]
[371729956,1752405052316,-553.71,0.0001863,2]
[371729957,1752405052325,-968.58,0.0001863,2]
[371729958,1752405052335,-460.0,0.0001863,2]
[371729959,1752405052344,-1228.5,0.0001863,2]
[371729960,1752405052353,-460.0,0.0001863,2]
[371729961,1752405052363,-2317.57,0.0001863,2]
[371729962,1752405052372,-460.0,0.0001863,2]
[371729963,1752405052382,-460.0,0.0001863,2]
[371729964,1752405052392,-460.0,0.0001863,2]
[371729965,1752405052402,-543.41,0.0001863,2]
[371729966,1752405052412,-460.0,0.0001863,2]
[371729967,1752405052421,-581.34,0.0001863,2]
[371729968,1752405052431,-806.05,0.0001863,2]
[371729969,1752405052441,-460.0,0.0001863,2]
[371729970,1752405052451,-460.0,0.0001863,2]
[371729971,1752405052460,-2045.15,0.0001863,2]
[371729972,1752405052470,-1764.26,0.0001863,2]
[371729973,1752405052479,-460.0,0.0001863,2]
[371729974,1752405052488,-2234.96,0.0001863,2]
[371729975,1752405052498,-460.0,0.0001863,2]
[371729976,1752405052507,-460.0,0.0001863,2]
[371729977,1752405052517,-747.33,0.0001863,2]
[371729978,1752405052526,-460.0,0.0001863,2]
[371729979,1752405052536,-2000.0,0.00018664,2]
[371729980,1752405052546,-806.48796736,0.00018664,2]
[371729981,1752405052555,-160.0,0.00018693,2]
[371729982,1752405052564,-500.0,0.0001875,2]
[371729983,1752405052574,-500.0,0.0001875,2]
[371729984,1752405052584,-3548.59151262,0.00018762,2]
[371729985,1752405052593,-890.37013331,0.0001878,2]
[371729986,1752405052603,-151.0,0.00018903,2]
[371729987,1752405052612,-151.0,0.00018903,2]
[371729988,1752405052622,-579.15,0.00018904,2]
[371729989,1752405052631,-460.0,0.00018904,2]
[371729990,1752405052641,-460.0,0.00018904,2]
[371729991,1752405052650,-246.529174,0.00018904,2]
[371729992,1752405052660,-246.529174,0.00018904,2]
[371729993,1752405052670,-533.72,0.00018904,2]
[371729994,1752405052680,-571.64,0.00018904,2]
[371729995,1752405052690,-460.0,0.00018904,2]
[371729996,1752405052700,-460.0,0.00018904,2]
[371729997,1752405052708,-460.0,0.00018904,2]
[371729998,1752405052718,-460.0,0.00018904,2]
[371729999,1752405052728,-460.0,0.00018904,2]
[371730000,1752405052738,-1854.12,0.00018904,2]
[371730001,1752405052747,-1041.88,0.00018904,2]
[371730002,1752405052758,-649.01,0.00018904,2]
[371730003,1752405052768,-528.86,0.00018904,2]
[371730004,1752405052778,-514.89,0.00018904,2]
[371730005,1752405052788,-460.0,0.00018904,2]
[371730006,1752405052799,-522.44220023,0.00018904,2]
[371730007,1752405052809,-460.0,0.00018904,2]
[371730008,1752405052819,-460.0,0.00018904,2]
[371730009,1752405052830,-460.0,0.00018904,2]
[371730010,1752405052840,-460.0,0.00018904,2]
[371730011,1752405052849,-460.0,0.00018904,2]
[371730012,1752405052859,-469.79,0.00018904,2]
[371730013,1752405052869,-813.62,0.00018904,2]
[371730014,1752405052879,-460.0,0.00018904,2]
[371730015,1752405052889,-553.71,0.00018904,2]
[371730016,1752405052899,-968.58,0.00018904,2]
[371730017,1752405052908,-460.0,0.00018904,2]
[371730018,1752405052918,-1228.5,0.00018904,2]
[371730019,1752405052928,-460.0,0.00018904,2]
[371730020,1752405052937,-2317.57,0.00018904,2]
[371730021,1752405052947,-460.0,0.00018904,2]
[371730022,1752405052957,-460.0,0.00018904,2]
[371730023,1752405052967,-460.0,0.00018904,2]
[371730024,1752405052976,-543.41,0.00018904,2]
[371730025,1752405052986,-460.0,0.00018904,2]
[371730026,1752405052995,-581.34,0.00018904,2]
[371730027,1752405053006,-806.05,0.00018904,2]
[371730028,1752405053016,-460.0,0.00018904,2]
[371730029,1752405053026,-2045.15,0.00018904,2]
[371730030,1752405053035,-460.0,0.00018904,2]
[371730031,1752405053044,-1764.26,0.00018904,2]
[371730032,1752405053054,-2234.96,0.00018904,2]
[371730033,1752405053063,-460.0,0.00018904,2]
[371730034,1752405053072,-460.0,0.00018904,2]
[371730035,1752405053082,-747.33,0.00018904,2]
[371730036,1752405053092,-503.07991612,0.00018921,2]
[371730037,1752405053101,-3548.59151262,0.00019072,2]
[371730038,1752405053111,-12598.31844336,0.00019154,2]
[371730039,1752405053120,-460.0,0.00019178,2]
[371730040,1752405053129,-460.0,0.00019178,2]
[371730041,1752405053139,-460.0,0.00019178,2]
[371730042,1752405053148,-460.0,0.00019178,2]
[371730043,1752405053158,-460.0,0.00019178,2]
[371730044,1752405053169,-460.0,0.00019178,2]
[371730045,1752405053180,-460.0,0.00019178,2]
[371730046,1752405053190,-460.0,0.00019178,2]
[371730047,1752405053199,-579.15,0.00019178,2]
[371730048,1752405053209,-460.0,0.00019178,2]
[371730049,1752405053219,-460.0,0.00019178,2]
[371730050,1752405053228,-533.72,0.00019178,2]
[371730051,1752405053237,-571.64,0.00019178,2]
[371730052,1752405053248,-460.0,0.00019178,2]
[371730053,1752405053257,-460.0,0.00019178,2]
[371730054,1752405053267,-460.0,0.00019178,2]
[371730055,1752405053276,-460.0,0.00019178,2]
[371730056,1752405053285,-460.0,0.00019178,2]
[371730057,1752405053296,-1854.12,0.00019178,2]
[371730058,1752405053305,-1041.88,0.00019178,2]
[371730059,1752405053315,-649.01,0.00019178,2]
[371730060,1752405053326,-528.86,0.00019178,2]
[371730061,1752405053336,-514.89,0.00019178,2]
[371730062,1752405053345,-460.0,0.00019178,2]
[371730063,1752405053355,-460.0,0.00019178,2]
[371730064,1752405053364,-460.0,0.00019178,2]
[371730065,1752405053374,-460.0,0.00019178,2]
[371730066,1752405053384,-460.0,0.00019178,2]
[371730067,1752405053394,-460.0,0.00019178,2]
[371730068,1752405053403,-469.79,0.00019178,2]
[371730069,1752405053413,-813.62,0.00019178,2]
[371730070,1752405053423,-460.0,0.00019178,2]
[371730071,1752405053432,-553.71,0.00019178,2]
[371730072,1752405053441,-198.38958192,0.00019178,2]
[371730073,1752405053451,-968.58,0.00019178,2]
[371730074,1752405053460,-460.0,0.00019178,2]
[371730075,1752405053470,-1228.5,0.00019178,2]
[371730076,1752405053480,-460.0,0.00019178,2]
[371730077,1752405053490,-2317.57,0.00019178,2]
[371730078,1752405053500,-460.0,0.00019178,2]